[Event "GrandPrix_29.05"]
[Site "Chess.com"]
[Date "2020.05.29"]
[Round "1"]
[White "Doukis"]
[Black "ploky25"]
[Result "0-1"]
[WhiteElo "2227"]
[BlackElo "2288"]
[TimeControl "600+2"]
[EndTime "9:23:42 PDT"]
[Termination "ploky25 won on time"]

1. d4 {[%clk 0:10:00.4]} 1... Nf6 {[%clk 0:09:57.7]} 2. c4 {[%clk 0:09:57.4]}
2... e6 {[%clk 0:09:55.6]} 3. Nc3 {[%clk 0:09:57]} 3... Bb4 {[%clk 0:09:53.4]}
4. a3 {[%clk 0:09:57]} 4... Bxc3+ {[%clk 0:09:52.2]} 5. bxc3 {[%clk 0:09:58.9]}
5... b6 {[%clk 0:08:34.5]} 6. e3 {[%clk 0:09:50.8]} 6... Bb7 {[%clk 0:08:23.3]}
7. f3 {[%clk 0:09:50.9]} 7... O-O {[%clk 0:08:03.8]} 8. Bd3 {[%clk 0:09:50.5]}
8... Nc6 {[%clk 0:07:57.7]} 9. e4 {[%clk 0:09:40.4]} 9... Ne8 {[%clk 0:07:49.4]}
10. Ne2 {[%clk 0:08:56.1]} 10... Na5 {[%clk 0:07:47.3]} 11. Ng3 {[%clk
0:07:43.4]} 11... c5 {[%clk 0:07:06.9]} 12. O-O {[%clk 0:07:27.3]} 12... Ba6
{[%clk 0:06:51.1]} 13. f4 {[%clk 0:07:13.2]} 13... cxd4 {[%clk 0:06:08]} 14.
cxd4 {[%clk 0:07:11.8]} 14... Bxc4 {[%clk 0:06:06.9]} 15. Bxc4 {[%clk
0:07:02.9]} 15... Nxc4 {[%clk 0:06:04.9]} 16. f5 {[%clk 0:07:03.9]} 16... f6
{[%clk 0:05:56.3]} 17. Qh5 {[%clk 0:06:43.2]} 17... b5 {[%clk 0:05:42.6]} 18.
Rf4 {[%clk 0:03:41.4]} 18... Qb6 {[%clk 0:05:37.5]} 19. Ne2 {[%clk 0:03:38.7]}
19... Rf7 {[%clk 0:02:39.4]} 20. Rh4 {[%clk 0:03:30.5]} 20... h6 {[%clk
0:02:39.3]} 21. Bxh6 {[%clk 0:02:22.3]} 21... gxh6 {[%clk 0:02:32]} 22. Qxh6
{[%clk 0:02:24.2]} 22... Rg7 {[%clk 0:02:24.7]} 23. Rd1 {[%clk 0:02:22.6]} 23...
Rc8 {[%clk 0:01:48.1]} 24. Nf4 {[%clk 0:01:05.1]} 24... Ne5 {[%clk 0:01:25.6]}
25. Ng6 {[%clk 0:00:54.7]} 25... Nxg6 {[%clk 0:01:15.6]} 26. fxg6 {[%clk
0:00:55.2]} 26... Kf8 {[%clk 0:01:14.7]} 27. Qh8+ {[%clk 0:00:50]} 27... Rg8
{[%clk 0:01:02.9]} 28. Qh6+ {[%clk 0:00:24.9]} 28... Ke7 {[%clk 0:00:56.6]} 29.
Rf4 {[%clk 0:00:20.6]} 29... e5 {[%clk 0:00:25.2]} 30. Rf2 {[%clk 0:00:20.4]}
30... Rc4 {[%clk 0:00:14.8]} 31. g7 {[%clk 0:00:18.7]} 31... Rxd4 {[%clk
0:00:09.8]} 32. Rdf1 {[%clk 0:00:18.2]} 32... Rxg7 {[%clk 0:00:07.3]} 33. Kh1
{[%clk 0:00:12]} 33... Rf7 {[%clk 0:00:05.5]} 34. Rf5 {[%clk 0:00:12.8]} 34...
Rxe4 {[%clk 0:00:05.3]} 35. Qh3 {[%clk 0:00:12.2]} 35... Qc6 {[%clk 0:00:05.6]}
36. Rh5 {[%clk 0:00:12.2]} 36... Rg7 {[%clk 0:00:04.2]} 37. Qf3 {[%clk
0:00:12.4]} 37... Reg4 {[%clk 0:00:04.5]} 0-1

[Event "GrandPrix_29.05"]
[Site "Chess.com"]
[Date "2020.05.29"]
[Round "1"]
[White "imdvb6307"]
[Black "Borsuk_Konstantin"]
[Result "0-1"]
[WhiteElo "1766"]
[BlackElo "1789"]
[TimeControl "600+2"]
[EndTime "9:23:51 PDT"]
[Termination "Borsuk_Konstantin won on time"]

1. e4 {[%clk 0:09:53.7]} 1... e6 {[%clk 0:09:59.1]} 2. d4 {[%clk 0:09:52.2]}
2... d5 {[%clk 0:09:59.3]} 3. exd5 {[%clk 0:09:51.7]} 3... exd5 {[%clk
0:09:59.9]} 4. Bd3 {[%clk 0:09:50.7]} 4... Nc6 {[%clk 0:09:41.5]} 5. c3 {[%clk
0:09:49]} 5... Bd6 {[%clk 0:09:12.4]} 6. Qf3 {[%clk 0:09:30.9]} 6... Nge7 {[%clk
0:08:29.9]} 7. Ne2 {[%clk 0:09:19]} 7... Be6 {[%clk 0:07:43.6]} 8. Bf4 {[%clk
0:08:40.7]} 8... Ng6 {[%clk 0:07:35.7]} 9. Bxd6 {[%clk 0:08:39.2]} 9... Qxd6
{[%clk 0:07:32.6]} 10. Qg3 {[%clk 0:08:18.4]} 10... O-O-O {[%clk 0:07:13.2]} 11.
Qxd6 {[%clk 0:08:09]} 11... Rxd6 {[%clk 0:07:11.6]} 12. h4 {[%clk 0:08:08]}
12... Nge7 {[%clk 0:06:28.9]} 13. Ng3 {[%clk 0:06:40.9]} 13... h6 {[%clk
0:05:04]} 14. Nd2 {[%clk 0:06:04]} 14... b6 {[%clk 0:04:48.7]} 15. O-O-O {[%clk
0:03:16.9]} 15... Kb7 {[%clk 0:04:37.1]} 16. Rde1 {[%clk 0:03:14.8]} 16... Rdd8
{[%clk 0:04:19.6]} 17. Re3 {[%clk 0:03:07.4]} 17... Nc8 {[%clk 0:03:56]} 18. Nh5
{[%clk 0:02:32.3]} 18... g6 {[%clk 0:03:05]} 19. Nf4 {[%clk 0:02:29.8]} 19...
Bd7 {[%clk 0:02:07.3]} 20. Nxd5 {[%clk 0:02:23.1]} 20... Be6 {[%clk 0:02:07.3]}
21. Nf4 {[%clk 0:02:13.9]} 21... Bd7 {[%clk 0:01:59.5]} 22. Ne4 {[%clk
0:01:44.1]} 22... N6e7 {[%clk 0:01:54.6]} 23. Nf6 {[%clk 0:01:39.6]} 23... Nf5
{[%clk 0:01:48.3]} 24. Bxf5 {[%clk 0:01:37.9]} 24... Bxf5 {[%clk 0:01:48.7]} 25.
g4 {[%clk 0:01:36.7]} 25... Bd7 {[%clk 0:01:49.1]} 26. Rhe1 {[%clk 0:01:29.8]}
26... g5 {[%clk 0:01:25.8]} 27. hxg5 {[%clk 0:01:23.8]} 27... hxg5 {[%clk
0:01:26.2]} 28. N4h5 {[%clk 0:01:11.1]} 28... Bxg4 {[%clk 0:01:23.4]} 29. Nxg4
{[%clk 0:00:50.3]} 29... Rxh5 {[%clk 0:01:23.3]} 30. Re5 {[%clk 0:00:47.2]}
30... Nd6 {[%clk 0:01:10.6]} 31. Re7 {[%clk 0:00:45.2]} 31... Rh4 {[%clk
0:00:49.1]} 32. f3 {[%clk 0:00:34.1]} 32... f5 {[%clk 0:00:46.8]} 33. Nf6 {[%clk
0:00:29.8]} 33... Rh3 {[%clk 0:00:05.6]} 34. Rf1 {[%clk 0:00:06.9]} 34... Kc6
{[%clk 0:00:04.6]} 35. Rg7 {[%clk 0:00:05.4]} 35... Rf8 {[%clk 0:00:03.6]} 36.
d5+ {[%clk 0:00:05.8]} 36... Kb7 {[%clk 0:00:04]} 37. Nd7 {[%clk 0:00:06.7]}
37... Rf7 {[%clk 0:00:04.9]} 38. Rxf7 {[%clk 0:00:05.2]} 38... Nxf7 {[%clk
0:00:06.4]} 39. Rf2 {[%clk 0:00:03.4]} 39... Kc8 {[%clk 0:00:07.1]} 40. Nf8
{[%clk 0:00:04.1]} 40... Ne5 {[%clk 0:00:07.6]} 0-1

[Event "GrandPrix_29.05"]
[Site "Chess.com"]
[Date "2020.05.29"]
[Round "1"]
[White "eljanov"]
[Black "ZoranRunic1"]
[Result "1-0"]
[WhiteElo "2718"]
[BlackElo "2145"]
[TimeControl "600+2"]
[EndTime "9:23:54 PDT"]
[Termination "eljanov won by resignation"]

1. e4 {[%clk 0:09:58.5]} 1... c5 {[%clk 0:09:54.8]} 2. Nf3 {[%clk 0:09:59.2]}
2... Nc6 {[%clk 0:09:54.4]} 3. Bb5 {[%clk 0:09:59.9]} 3... g6 {[%clk 0:09:41.6]}
4. Bxc6 {[%clk 0:09:59.7]} 4... dxc6 {[%clk 0:09:41.4]} 5. d3 {[%clk 0:09:59]}
5... Bg7 {[%clk 0:09:41.7]} 6. h3 {[%clk 0:09:57.6]} 6... e5 {[%clk 0:09:38.2]}
7. a3 {[%clk 0:09:48.2]} 7... a5 {[%clk 0:09:26.9]} 8. Be3 {[%clk 0:09:38.9]}
8... b6 {[%clk 0:09:24.9]} 9. Nbd2 {[%clk 0:09:40.5]} 9... Qc7 {[%clk
0:09:14.4]} 10. b4 {[%clk 0:08:46.4]} 10... cxb4 {[%clk 0:07:47.8]} 11. axb4
{[%clk 0:08:48.3]} 11... a4 {[%clk 0:07:48.1]} 12. c4 {[%clk 0:06:54.2]} 12...
b5 {[%clk 0:07:37.4]} 13. Qc2 {[%clk 0:06:22.5]} 13... Qd7 {[%clk 0:05:36.8]}
14. O-O {[%clk 0:06:02.4]} 14... Ne7 {[%clk 0:05:26]} 15. cxb5 {[%clk
0:05:32.5]} 15... cxb5 {[%clk 0:05:24.2]} 16. Qc5 {[%clk 0:05:34.1]} 16... f6
{[%clk 0:05:16.6]} 17. d4 {[%clk 0:05:13.4]} 17... exd4 {[%clk 0:05:02.5]} 18.
Nxd4 {[%clk 0:04:32.7]} 18... Ba6 {[%clk 0:04:59.2]} 19. Rfc1 {[%clk 0:03:32.4]}
19... O-O {[%clk 0:04:36.3]} 20. Qc7 {[%clk 0:03:30.7]} 20... Rfd8 {[%clk
0:04:14.8]} 21. N2f3 {[%clk 0:03:02.5]} 21... Rac8 {[%clk 0:02:52.9]} 22. Qb6
{[%clk 0:02:53.6]} 22... Rxc1+ {[%clk 0:02:23.1]} 23. Rxc1 {[%clk 0:02:53.2]}
23... Qd6 {[%clk 0:02:19.9]} 24. Qa5 {[%clk 0:02:34]} 24... Rb8 {[%clk
0:01:01.7]} 25. Rc7 {[%clk 0:02:14.8]} 25... Bf8 {[%clk 0:00:50.4]} 26. Ra7
{[%clk 0:01:40.6]} 26... Bb7 {[%clk 0:00:23.3]} 27. Nxb5 {[%clk 0:00:13.3]}
27... Qd1+ {[%clk 0:00:22.1]} 28. Kh2 {[%clk 0:00:14.6]} 28... Bxe4 {[%clk
0:00:22.7]} 29. Nc3 {[%clk 0:00:03]} 29... Qd6+ {[%clk 0:00:18.4]} 30. Kh1
{[%clk 0:00:03.5]} 30... Bxf3 {[%clk 0:00:16.4]} 31. gxf3 {[%clk 0:00:03.6]}
31... Qxb4 {[%clk 0:00:16.7]} 32. Qxb4 {[%clk 0:00:03.5]} 32... Rxb4 {[%clk
0:00:15.7]} 33. Rxa4 {[%clk 0:00:04.2]} 33... Rb3 {[%clk 0:00:16.2]} 34. Ne4
{[%clk 0:00:04.6]} 34... Kf7 {[%clk 0:00:13.6]} 35. Ra7 {[%clk 0:00:03.4]} 35...
Rb1+ {[%clk 0:00:10.5]} 36. Kg2 {[%clk 0:00:04.7]} 36... h6 {[%clk 0:00:10.8]}
37. Bd4 {[%clk 0:00:04.6]} 37... f5 {[%clk 0:00:07.1]} 38. Nc5 {[%clk
0:00:05.7]} 38... Rd1 {[%clk 0:00:06.1]} 39. Be3 {[%clk 0:00:06.6]} 39... Rd4
{[%clk 0:00:05.2]} 40. Bxd4 {[%clk 0:00:07.2]} 1-0

[Event "GrandPrix_29.05"]
[Site "Chess.com"]
[Date "2020.05.29"]
[Round "1"]
[White "Gabix_94"]
[Black "2346PL"]
[Result "1/2-1/2"]
[WhiteElo "2449"]
[BlackElo "2105"]
[TimeControl "600+2"]
[EndTime "9:23:55 PDT"]
[Termination "Game drawn - insufficient material"]

1. d4 {[%clk 0:09:59]} 1... f5 {[%clk 0:10:00.8]} 2. Nf3 {[%clk 0:09:54.5]} 2...
Nf6 {[%clk 0:10:01.8]} 3. g3 {[%clk 0:09:55.1]} 3... g6 {[%clk 0:10:02.9]} 4.
Bg2 {[%clk 0:09:55.4]} 4... Bg7 {[%clk 0:10:04.5]} 5. O-O {[%clk 0:09:56.1]}
5... O-O {[%clk 0:10:06]} 6. Nbd2 {[%clk 0:09:57.1]} 6... d6 {[%clk 0:10:00.5]}
7. Re1 {[%clk 0:09:57.1]} 7... d5 {[%clk 0:09:53.5]} 8. c3 {[%clk 0:09:52.9]}
8... c6 {[%clk 0:09:52]} 9. Ne5 {[%clk 0:09:50.2]} 9... Nbd7 {[%clk 0:09:47.6]}
10. Nd3 {[%clk 0:09:47.4]} 10... e5 {[%clk 0:08:45.3]} 11. dxe5 {[%clk
0:09:18.4]} 11... Ng4 {[%clk 0:08:45.5]} 12. e6 {[%clk 0:09:05.5]} 12... Ndf6
{[%clk 0:08:39.2]} 13. h3 {[%clk 0:08:44.5]} 13... Nh6 {[%clk 0:08:37.3]} 14.
Nf3 {[%clk 0:08:29.4]} 14... Bxe6 {[%clk 0:08:32]} 15. Nd4 {[%clk 0:08:13.2]}
15... Qe7 {[%clk 0:07:50.3]} 16. Nxe6 {[%clk 0:08:02]} 16... Qxe6 {[%clk
0:07:51.2]} 17. a4 {[%clk 0:07:48.7]} 17... Nf7 {[%clk 0:07:38.2]} 18. a5 {[%clk
0:07:35.8]} 18... Ne4 {[%clk 0:07:28.9]} 19. Kh2 {[%clk 0:07:20.4]} 19... Rfe8
{[%clk 0:06:43.6]} 20. f3 {[%clk 0:06:52]} 20... Nf6 {[%clk 0:06:30.3]} 21. Qb3
{[%clk 0:06:37.9]} 21... Nd6 {[%clk 0:06:19]} 22. Bf4 {[%clk 0:06:32.5]} 22...
Nh5 {[%clk 0:05:47]} 23. Rad1 {[%clk 0:05:59.8]} 23... Nxf4 {[%clk 0:05:40.1]}
24. Nxf4 {[%clk 0:06:01.7]} 24... Qe3 {[%clk 0:05:10.7]} 25. Nxd5 {[%clk
0:04:16.8]} 25... cxd5 {[%clk 0:05:04.8]} 26. Qxd5+ {[%clk 0:04:17.4]} 26... Nf7
{[%clk 0:04:30.5]} 27. Qxb7 {[%clk 0:04:06.6]} 27... Rab8 {[%clk 0:04:17.9]} 28.
Qc6 {[%clk 0:04:03.8]} 28... f4 {[%clk 0:03:52.4]} 29. gxf4 {[%clk 0:04:02.5]}
29... Qxf4+ {[%clk 0:03:51.2]} 30. Kg1 {[%clk 0:04:03.7]} 30... Qe3+ {[%clk
0:03:27.7]} 31. Kh1 {[%clk 0:04:00.1]} 31... Rxb2 {[%clk 0:03:17.8]} 32. Rd3
{[%clk 0:03:56.6]} 32... Qe6 {[%clk 0:02:51]} 33. Qxe6 {[%clk 0:03:42.9]} 33...
Rxe6 {[%clk 0:02:52.9]} 34. e4 {[%clk 0:03:44.7]} 34... Be5 {[%clk 0:02:37.4]}
35. h4 {[%clk 0:03:37.4]} 35... Rd6 {[%clk 0:02:31.3]} 36. Rxd6 {[%clk
0:03:34.8]} 36... Nxd6 {[%clk 0:02:31.7]} 37. Rd1 {[%clk 0:03:32.1]} 37... Kf7
{[%clk 0:02:20.6]} 38. Bf1 {[%clk 0:03:31.7]} 38... Ke7 {[%clk 0:02:14.7]} 39.
Rd5 {[%clk 0:03:30]} 39... Bxc3 {[%clk 0:02:06.7]} 40. Rc5 {[%clk 0:03:28.6]}
40... Bd4 {[%clk 0:01:59.8]} 41. Rc7+ {[%clk 0:03:28]} 41... Kf6 {[%clk
0:01:58.3]} 42. Rd7 {[%clk 0:03:10.2]} 42... Bc5 {[%clk 0:01:42.5]} 43. Rxh7
{[%clk 0:03:01.9]} 43... Rf2 {[%clk 0:01:26.6]} 44. Bg2 {[%clk 0:03:00.2]} 44...
Ra2 {[%clk 0:01:26.5]} 45. h5 {[%clk 0:02:56.8]} 45... Ra1+ {[%clk 0:01:18.4]}
46. Kh2 {[%clk 0:02:57.3]} 46... gxh5 {[%clk 0:01:19.4]} 47. Rxh5 {[%clk
0:02:50.8]} 47... Rxa5 {[%clk 0:01:19.9]} 48. Kh3 {[%clk 0:02:39]} 48... Nf7
{[%clk 0:01:06.6]} 49. f4 {[%clk 0:02:39.1]} 49... Bb6 {[%clk 0:01:01.4]} 50.
e5+ {[%clk 0:02:37.9]} 50... Kg6 {[%clk 0:00:52.9]} 51. Rh4 {[%clk 0:02:25.2]}
51... Kf5 {[%clk 0:00:42]} 52. Rh7 {[%clk 0:02:13.9]} 52... Ra3+ {[%clk
0:00:42.9]} 53. Kh4 {[%clk 0:02:08.7]} 53... Nxe5 {[%clk 0:00:28.5]} 54. fxe5
{[%clk 0:01:57.1]} 54... Kxe5 {[%clk 0:00:29.9]} 55. Rh5+ {[%clk 0:01:47]} 55...
Kd4 {[%clk 0:00:29.8]} 56. Rd5+ {[%clk 0:01:46.7]} 56... Kc4 {[%clk 0:00:29.6]}
57. Rd1 {[%clk 0:01:45.9]} 57... Bd4 {[%clk 0:00:26.4]} 58. Bf1+ {[%clk
0:01:44.3]} 58... Kc5 {[%clk 0:00:26.6]} 59. Kg4 {[%clk 0:01:45.4]} 59... a5
{[%clk 0:00:23.1]} 60. Kf5 {[%clk 0:01:46.2]} 60... Re3 {[%clk 0:00:23.3]} 61.
Rc1+ {[%clk 0:01:41.7]} 61... Rc3 {[%clk 0:00:19.5]} 62. Rxc3+ {[%clk
0:01:30.6]} 62... Bxc3 {[%clk 0:00:21.4]} 63. Ke4 {[%clk 0:01:31.8]} 63... Kb4
{[%clk 0:00:22]} 64. Kd3 {[%clk 0:01:32.9]} 64... a4 {[%clk 0:00:23.6]} 65. Bh3
{[%clk 0:01:34.2]} 65... a3 {[%clk 0:00:24.9]} 66. Be6 {[%clk 0:01:35.8]} 66...
a2 {[%clk 0:00:26.2]} 67. Bxa2 {[%clk 0:01:36.8]} 1/2-1/2

[Event "GrandPrix_29.05"]
[Site "Chess.com"]
[Date "2020.05.29"]
[Round "1"]
[White "KJakubowski"]
[Black "Saxar85"]
[Result "1/2-1/2"]
[WhiteElo "2394"]
[BlackElo "2650"]
[TimeControl "600+2"]
[EndTime "9:23:59 PDT"]
[Termination "Game drawn by repetition"]

1. d4 {[%clk 0:09:45.9]} 1... d6 {[%clk 0:09:59.3]} 2. e4 {[%clk 0:09:44.7]}
2... g6 {[%clk 0:09:59.1]} 3. Nc3 {[%clk 0:09:37.9]} 3... Bg7 {[%clk 0:09:58.9]}
4. Be3 {[%clk 0:09:36.8]} 4... a6 {[%clk 0:09:59.5]} 5. Qd2 {[%clk 0:09:24.4]}
5... b5 {[%clk 0:09:51.4]} 6. O-O-O {[%clk 0:09:22.9]} 6... Nd7 {[%clk
0:09:42.6]} 7. f4 {[%clk 0:07:54.5]} 7... Bb7 {[%clk 0:09:34.2]} 8. e5 {[%clk
0:06:44.2]} 8... Nh6 {[%clk 0:09:22.5]} 9. Nf3 {[%clk 0:06:35.5]} 9... Nf5
{[%clk 0:08:57.1]} 10. Bd3 {[%clk 0:06:06.6]} 10... e6 {[%clk 0:08:55.1]} 11.
Be4 {[%clk 0:05:45.2]} 11... Bxe4 {[%clk 0:08:17.2]} 12. Nxe4 {[%clk 0:05:44.9]}
12... d5 {[%clk 0:08:09.5]} 13. Nc5 {[%clk 0:05:30.9]} 13... Bf8 {[%clk
0:06:46]} 14. Bf2 {[%clk 0:04:37.1]} 14... h5 {[%clk 0:06:43.8]} 15. g3 {[%clk
0:04:27.1]} 15... Nxc5 {[%clk 0:05:40.2]} 16. dxc5 {[%clk 0:04:26.2]} 16... Qd7
{[%clk 0:05:40.5]} 17. h3 {[%clk 0:04:02.8]} 17... h4 {[%clk 0:05:22.8]} 18. g4
{[%clk 0:03:47.9]} 18... Ng3 {[%clk 0:05:23.1]} 19. Rhe1 {[%clk 0:03:26.9]}
19... c6 {[%clk 0:03:21.2]} 20. Ng5 {[%clk 0:02:56.2]} 20... Be7 {[%clk
0:01:59.8]} 21. Bxg3 {[%clk 0:02:25.2]} 21... Bxg5 {[%clk 0:01:59.3]} 22. fxg5
{[%clk 0:02:17.7]} 22... hxg3 {[%clk 0:01:59.6]} 23. Qg2 {[%clk 0:02:08.7]}
23... Qe7 {[%clk 0:01:56.1]} 24. Qxg3 {[%clk 0:02:06.3]} 24... Qxg5+ {[%clk
0:01:56.3]} 25. Kb1 {[%clk 0:02:06.6]} 25... Qh4 {[%clk 0:01:26.5]} 26. Qf3
{[%clk 0:01:28.6]} 26... Qxh3 {[%clk 0:01:13.3]} 27. Qf6 {[%clk 0:01:28.6]}
27... Rh7 {[%clk 0:01:07.9]} 28. Rg1 {[%clk 0:00:49.1]} 28... Kd7 {[%clk
0:01:03.1]} 29. a3 {[%clk 0:00:38.7]} 29... Qh4 {[%clk 0:00:57]} 30. Qf3 {[%clk
0:00:31.3]} 30... Qe7 {[%clk 0:00:51.5]} 31. Qc3 {[%clk 0:00:29.1]} 31... Rah8
{[%clk 0:00:39.8]} 32. Rdf1 {[%clk 0:00:25.7]} 32... Kc8 {[%clk 0:00:27.9]} 33.
Rf3 {[%clk 0:00:20.4]} 33... Rh1 {[%clk 0:00:24.4]} 34. Rxh1 {[%clk 0:00:20.2]}
34... Rxh1+ {[%clk 0:00:25.1]} 35. Ka2 {[%clk 0:00:22.1]} 35... Rh7 {[%clk
0:00:21]} 36. Rf6 {[%clk 0:00:22.4]} 36... Kb7 {[%clk 0:00:17.9]} 37. a4 {[%clk
0:00:20]} 37... Qc7 {[%clk 0:00:17]} 38. Rf4 {[%clk 0:00:16.6]} 38... Kb8 {[%clk
0:00:11.2]} 39. Qb3 {[%clk 0:00:07.3]} 39... Kc8 {[%clk 0:00:11.5]} 40. Qc3
{[%clk 0:00:07.9]} 40... Kb8 {[%clk 0:00:12.3]} 41. Rf6 {[%clk 0:00:08.3]} 41...
Kc8 {[%clk 0:00:12.8]} 42. Rf4 {[%clk 0:00:09.3]} 42... Kb7 {[%clk 0:00:12.9]}
43. Rf6 {[%clk 0:00:09]} 43... Kb8 {[%clk 0:00:13.9]} 44. Rf4 {[%clk 0:00:09.4]}
44... Kc8 {[%clk 0:00:15]} 45. Rf6 {[%clk 0:00:10.3]} 45... Kb8 {[%clk
0:00:16.3]} 46. Rf4 {[%clk 0:00:11.1]} 46... Kc8 {[%clk 0:00:17.3]} 47. Rf6
{[%clk 0:00:12]} 47... Kb8 {[%clk 0:00:18.6]} 1/2-1/2

[Event "GrandPrix_29.05"]
[Site "Chess.com"]
[Date "2020.05.29"]
[Round "1"]
[White "woodhy"]
[Black "caspiwins"]
[Result "0-1"]
[WhiteElo "1861"]
[BlackElo "2435"]
[TimeControl "600+2"]
[EndTime "9:23:59 PDT"]
[Termination "caspiwins won by checkmate"]

1. e4 {[%clk 0:09:59]} 1... e5 {[%clk 0:09:54.8]} 2. Nf3 {[%clk 0:09:57.5]} 2...
Nc6 {[%clk 0:09:55]} 3. Bb5 {[%clk 0:09:56.1]} 3... g6 {[%clk 0:09:55.4]} 4. O-O
{[%clk 0:09:38.1]} 4... Bg7 {[%clk 0:09:46.7]} 5. c3 {[%clk 0:09:36.1]} 5... a6
{[%clk 0:09:23.7]} 6. Ba4 {[%clk 0:09:25.9]} 6... d6 {[%clk 0:09:20.9]} 7. d4
{[%clk 0:09:09.1]} 7... b5 {[%clk 0:09:10.4]} 8. Bb3 {[%clk 0:09:02.3]} 8...
exd4 {[%clk 0:09:10.2]} 9. Bd5 {[%clk 0:08:42.8]} 9... Nge7 {[%clk 0:08:31.2]}
10. Nxd4 {[%clk 0:08:31.3]} 10... Bd7 {[%clk 0:06:57.6]} 11. Bg5 {[%clk
0:08:13]} 11... f6 {[%clk 0:06:51.1]} 12. Bh4 {[%clk 0:07:28.2]} 12... Nxd5
{[%clk 0:06:08.6]} 13. exd5 {[%clk 0:06:54.8]} 13... Ne7 {[%clk 0:06:07.6]} 14.
Re1 {[%clk 0:06:44.2]} 14... O-O {[%clk 0:06:07.4]} 15. Ne6 {[%clk 0:06:43.7]}
15... Bxe6 {[%clk 0:06:07.8]} 16. Rxe6 {[%clk 0:06:44.5]} 16... Qd7 {[%clk
0:05:45.6]} 17. Qb3 {[%clk 0:06:03.5]} 17... Nf5 {[%clk 0:04:57.3]} 18. Bg3
{[%clk 0:06:00.7]} 18... Rfe8 {[%clk 0:04:51.8]} 19. Nd2 {[%clk 0:05:44.9]}
19... c5 {[%clk 0:04:51.9]} 20. Rae1 {[%clk 0:05:35]} 20... Kf7 {[%clk 0:04:09]}
21. Ne4 {[%clk 0:05:12.6]} 21... Rad8 {[%clk 0:03:43.9]} 22. Bxd6 {[%clk
0:03:48.3]} 22... c4 {[%clk 0:02:49.1]} 23. Qd1 {[%clk 0:02:47.6]} 23... Rxe6
{[%clk 0:02:25.6]} 24. dxe6+ {[%clk 0:01:19.2]} 24... Qxe6 {[%clk 0:02:26.2]}
25. Qe2 {[%clk 0:00:38.1]} 25... Re8 {[%clk 0:01:34.7]} 26. g4 {[%clk
0:00:20.9]} 26... Qxe4 {[%clk 0:01:01.7]} 27. Qxe4 {[%clk 0:00:16.1]} 27... Rxe4
{[%clk 0:01:03.6]} 28. Rxe4 {[%clk 0:00:16.1]} 28... Nxd6 {[%clk 0:01:05.1]} 29.
Rd4 {[%clk 0:00:17.5]} 29... Ke6 {[%clk 0:01:00.6]} 30. f3 {[%clk 0:00:18.5]}
30... f5 {[%clk 0:00:54.5]} 31. Rd1 {[%clk 0:00:18.6]} 31... b4 {[%clk 0:00:38]}
32. cxb4 {[%clk 0:00:17.6]} 32... Bxb2 {[%clk 0:00:37.8]} 33. a4 {[%clk
0:00:15.8]} 33... c3 {[%clk 0:00:38.6]} 34. Re1+ {[%clk 0:00:16.5]} 34... Kd5
{[%clk 0:00:39]} 35. Re2 {[%clk 0:00:17.4]} 35... Kc4 {[%clk 0:00:34.4]} 36. b5
{[%clk 0:00:17.8]} 36... axb5 {[%clk 0:00:32.9]} 37. a5 {[%clk 0:00:19.1]} 37...
b4 {[%clk 0:00:29.4]} 38. a6 {[%clk 0:00:19.8]} 38... Nb5 {[%clk 0:00:30.5]} 39.
Kf2 {[%clk 0:00:18]} 39... b3 {[%clk 0:00:31.5]} 40. gxf5 {[%clk 0:00:18.5]}
40... gxf5 {[%clk 0:00:32.3]} 41. Re8 {[%clk 0:00:18.5]} 41... c2 {[%clk
0:00:32.5]} 42. Rc8+ {[%clk 0:00:19.6]} 42... Kb4 {[%clk 0:00:33.1]} 43. Rb8
{[%clk 0:00:20.2]} 43... Bd4+ {[%clk 0:00:34]} 44. Kg3 {[%clk 0:00:18.3]} 44...
Be5+ {[%clk 0:00:31.8]} 45. f4 {[%clk 0:00:18.7]} 45... Bxb8 {[%clk 0:00:32.4]}
46. h4 {[%clk 0:00:20.6]} 46... c1=Q {[%clk 0:00:33]} 47. h5 {[%clk 0:00:22.5]}
47... Qxf4+ {[%clk 0:00:33.6]} 48. Kg2 {[%clk 0:00:23.2]} 48... Qg3+ {[%clk
0:00:34.6]} 49. Kf1 {[%clk 0:00:22.3]} 49... Qf3+ {[%clk 0:00:28.6]} 50. Kg1
{[%clk 0:00:20]} 50... b2 {[%clk 0:00:28.9]} 51. a7 {[%clk 0:00:20.5]} 51...
b1=R# {[%clk 0:00:28.7]} 0-1